Cogmind - Beta 16 --- EXPLORER MODE // 2025.12.03 @ 11:19:55 Player: K.K.Y. Result: Destroyed by SI-DUA(R) with Subdweller Beam Cannon Performance ------------- Evolutions (0) 0 Regions Visited (3) 600 Robots Destroyed (44) 220 Value Destroyed (782) 782 Prototype IDs (12) 240 Alien Tech Used (0) 0 Bonus (0) 0 TOTAL SCORE: 1842 Bonus ------- None Cogmind --------- Core Integrity 0/250 Matter 217/300 Energy 85/100 System Corruption 0% Temperature Cool (9) Movement Walking (130) Location -10/Subcaves Parts ------- > --- POWER (1) -------- (None) > --- PROPULSION (2) --- Cargo Legs > --- UTILITY (3+2) ---- Light Humpback (++) Improved Terrain Scanner Terrain Scan Processor Terrain Scan Processor > --- WEAPON (2) ------- Barrage Gun Slug Cannon > --- INVENTORY (25) --- Makeshift Power Source Spiked Treads Makeshift Leg High-capacity Storage Unit Terrain Scan Processor Makeshift System Restoration Module Heavy Riot Gun Medium Laser Battle Rifle Barrage Gun Datajack Peak State ------------ > --- POWER ------------ Light Nuclear Core > --- PROPULSION ------- Cargo Legs > --- UTILITY ---------- Light Humpback Improved Terrain Scanner Terrain Scan Processor Terrain Scan Processor > --- WEAPON ----------- Barrage Gun Barrage Gun > --- INVENTORY -------- Makeshift Power Source Spiked Treads Makeshift Leg High-capacity Storage Unit Terrain Scan Processor Makeshift System Restoration Module Heavy Riot Gun Medium Laser Battle Rifle Slug Cannon Datajack [Rating: 36] Favorites ----------- Power Light Nuclear Core Engine Ion Engine Power Core Light Nuclear Core Propulsion Light Treads Treads Light Treads Leg Cargo Legs Utility Terrain Scan Processor Device Improved Terrain Scanner Storage Light Humpback Processor Terrain Scan Processor Protection Light Armor Plating Weapon Assault Rifle Energy Gun Medium Laser Ballistic Gun Assault Rifle Ballistic Cannon Slug Cannon Special Weapon Mining Laser Build | -11 -10 -10 -10 ------- Run | Yrd Mat Min Sub Slots Evolved 1 | . 1 . . Power . | . . . . Propulsion . | . . . . Utility 1 | . 1 . . Weapon . | . . . . Parts Attached 24 | 7 3 4 10 Power 3 | 1 . 2 . Engine 2 | 1 . 1 . Core 1 | . . 1 . Reactor . | . . . . Propulsion 4 | 2 . 1 1 Treads 3 | 2 . 1 . Leg 1 | . . . 1 Wheel . | . . . . Hover . | . . . . Flight . | . . . . Utility 8 | 2 3 1 2 Device 3 | . 1 1 1 Storage 2 | 1 . . 1 Processor 2 | . 2 . . Hackware . | . . . . Protection 1 | 1 . . . Artifact . | . . . . Weapon 9 | 2 . . 7 Energy Gun 1 | 1 . . . Energy Cannon . | . . . . Ballistic Gun 5 | 1 . . 4 Ballistic Cannon 1 | . . . 1 Launcher . | . . . . Special Weapon 2 | . . . 2 Impact Weapon . | . . . . Slashing Weapon . | . . . . Piercing Weapon . | . . . . Special Melee Weapon . | . . . . Unidentified Prototypes . | . . . . Parts Lost 4 | . . . 4 Power 1 | . . . 1 Propulsion . | . . . . Utility 1 | . . . 1 Weapon 2 | . . . 2 Highest Loss Streak 1 | . . . 1 To Critical Strikes . | . . . . Average Backups 5 | 2 4 4 6 Power . | . . . . Propulsion . | . . . . Utility 2 | 1 3 3 2 Weapon 1 | . 1 . 1 Tool/Special . | . . . . Unused Backups 12 | . . 4 8 Power 1 | . . . 1 Propulsion 3 | . . 1 2 Utility 6 | . . 3 3 Weapon 1 | . . . 1 Tool/Special 1 | . . . 1 Average Slot Usage (%) 85 | . 93 100 79 Engine 3 | . 12 9 . Core 7 | . . 3 10 Treads 12 | . 25 25 6 Leg 4 | . . . 7 Device 10 | . 9 12 10 Storage 3 | . 2 . 4 Processor 21 | . 18 25 21 Energy Gun 4 | . 12 12 . Ballistic Gun 14 | . 12 12 15 Special Weapon 1 | . . . 2 Peak Build Rating 36 | 7 12 14 36 Average Rating 21 | 6 10 12 27 On Entrance 8 | . 7 12 14 Avg Prop Armor Cover (%) . | . . . . Naked Turns . | . . . . Heaviest Build 51 | 22 19 10 51 Greatest Support 55 | 40 40 40 55 Greatest Overweight (x) . | . . . . Average Overweight (x) . | . . . . Largest Inventory Capacity 25 | 10 10 5 25 Average Capacity 10 | 9 6 5 13 Most Carried 12 | 5 5 5 12 Average Carried 5 | 2 4 4 6 Final Capacity 25 | 10 5 5 25 Final Carried 11 | 3 5 5 11 Class Distribution -------------------- 73% | Hacker-Mutant 26% | Scavenger-Mutant Dominant Class ---------------- Hacker-Mutant | -10/Materials Hacker-Mutant | -10/Mines Hacker-Mutant | -10/Subcaves Resources | -11 -10 -10 -10 ----------- Run | Yrd Mat Min Sub Matter Collected 1074 | 294 123 157 500 Remotely . | . . . . Salvage Created 1396 | 153 382 668 193 Parts 106 | 16 36 39 15 Haulers Intercepted 1 | . 1 . . Recyclers Shooed 3 | 1 . 2 . Parts Field Recycled . | . . . . Retrieved Matter . | . . . . Parts Self-Destructed . | . . . . Prevented . | . . . . Parts Restored . | . . . . Kills | -11 -10 -10 -10 ------- Run | Yrd Mat Min Sub Combat Hostiles Destroyed 18 | . 7 3 8 Guns 15 | . 7 3 5 Cannons 3 | . . . 3 Classes Destroyed 10 | 2 6 1 1 Worker 2 | . 1 1 . Builder 6 | . 3 3 . Tunneler 7 | 4 . 3 . Hauler 1 | . 1 . . Recycler 7 | 1 . 6 . Watcher 3 | . 3 . . Swarmer 4 | . 4 . . Grunt 5 | . 3 2 . Demolisher 1 | . . 1 . Subdweller 8 | . . . 8 Best Kill Streak 4 | 4 3 4 2 Combat Bots Only 2 | . 2 2 2 Max Kills in Single Turn 2 | 1 2 1 1 Gunslinging . | . . . . Exploded . | . . . . Melee . | . . . . Uniques/NPCs Destroyed . | . . . . Combat | -11 -10 -10 -10 -------- Run | Yrd Mat Min Sub Hostile Shots Fired 132 | . 29 22 81 Missed 40 | . 11 6 23 Hits 92 | . 18 16 58 Projectile 92 | . 18 16 58 AOE 7 | . . 7 . Critical Strikes 4 | . . . 4 Damage Taken 1273 | . 103 268 902 Core 257 | . 18 61 178 Absorbed by Shields . | . . . . Ignored by Resistances 704 | . 73 158 473 Core Remaining (%) 100 | 100 . . . Volleys Fired 178 | 9 30 39 100 Largest 2 | 2 2 2 2 Hottest 120 | 70 70 70 120 Shots Fired 291 | 18 58 78 137 Gun 273 | 18 58 78 119 Cannon 4 | . . . 4 Launcher . | . . . . Special 14 | . . . 14 Kinetic 201 | 9 30 39 123 Thermal 90 | 9 28 39 14 Explosive . | . . . . Electromagnetic . | . . . . Robot Hit Streak 65 | 9 19 65 24 Robot Miss Streak 3 | 1 3 2 2 Penetration Max . | . . . . Secondary Targets 1 | . . . 1 Max Gunslinging Chain 1 | . . . 1 Shots Hit Robots 186 | 12 45 66 63 Core Hits 67 | 6 20 24 17 Critical Kills . | . . . . Critical Parts Destroyed . | . . . . Critical Strikes 11 | 1 3 6 1 Burn 10 | 1 3 6 . Destroy 1 | . . . 1 Melee Attacks . | . . . . Impact . | . . . . Slashing . | . . . . Piercing . | . . . . Sneak Attacks . | . . . . Combat Hostiles . | . . . . Follow-up Attacks . | . . . . Damage Inflicted 2669 | 152 569 836 1112 Guns 2391 | 152 569 836 834 Cannons 86 | . . . 86 Explosions . | . . . . Melee . | . . . . Ramming . | . . . . Kinetic 1650 | 67 291 372 920 Thermal 1019 | 85 278 464 192 Explosive . | . . . . Electromagnetic . | . . . . Impact . | . . . . Slashing . | . . . . Piercing . | . . . . Highest Corruption . | . . . . Average Corruption . | . . . . Corruption Purged . | . . . . Corruption Blocked . | . . . . Overload Shots . | . . . . Overflow Damage . | . . . . Projectiles . | . . . . Explosions . | . . . . Melee . | . . . . Knockbacks 1 | . . . 1 Impact . | . . . . Kinetic 1 | . . . 1 Secondary . | . . . . Self-Inflicted Damage . | . . . . Shots . | . . . . Rammed . | . . . . Targets Rammed . | . . . . Kicked . | . . . . Crushed . | . . . . Highest Temperature 123 | 54 69 123 . Average Temperature 22 | 19 21 24 . Received Heat Transfer 336 | . 48 60 228 Siege Activations . | . . . . Martial Activations . | . . . . Shielding Activations . | . . . . Robots Disrupted . | . . . . Combat Hostiles . | . . . . Robots Corrupted . | . . . . Combat Hostiles . | . . . . Parts Fried . | . . . . Impact Corruptions . | . . . . Robots Melted . | . . . . Combat Hostiles . | . . . . Parts Melted 3 | 1 . 1 1 Heat Transferred 3582 | 333 1036 1813 400 Parts Sabotaged . | . . . . Parts Stolen . | . . . . Parts Stripped . | . . . . Power Chain Reactions . | . . . . Alert | -11 -10 -10 -10 ------- Run | Yrd Mat Min Sub Maximum Alert Level . | . . . . Low Security (%) 100 | 100 100 100 . Level 1 . | . . . . Level 2 . | . . . . Level 3 . | . . . . Level 4 . | . . . . Level 5 . | . . . . High Security . | . . . . Max Security . | . . . . Peak Influence 55 | 10 55 50 . Initial . | . . . . Average 3 | . 8 1 . Influence Increases 411 | 25 221 165 . Destroy 0b10 Robot/C 200 | . 140 60 . Destroy 0b10 Robot/NC 130 | 25 40 65 . Destroy Leader 48 | . 38 10 . Successful Hack 3 | . 3 . . Lose Combat Pursuer 30 | . . 30 . Influence Decreases 411 | 25 221 165 . Time Decay 411 | 25 221 165 . Squads Dispatched . | . . . . Investigation . | . . . . Extermination . | . . . . Reinforcement . | . . . . Assault . | . . . . Garrison . | . . . . Intercept . | . . . . Searches Triggered . | . . . . Construction Impeded . | . . . . Haulers Reinforced . | . . . . Active Scanning Responses . | . . . . Cargo Convoy Interrupts . | . . . . Stealth | -11 -10 -10 -10 --------- Run | Yrd Mat Min Sub Distress Signals . | . . . . Communications Jammed . | . . . . Distress Signals . | . . . . Times Spotted 37 | . 11 12 14 Peak Tracking Total 13 | . 3 13 5 Tactical Retreats 1 | . . 1 . Traps | -11 -10 -10 -10 ------- Run | Yrd Mat Min Sub Traps Triggered 3 | . 1 . 2 Indirectly . | . . . . Trap Hack Attempts . | . . . . Triggered . | . . . . Disarmed . | . . . . Reprogrammed . | . . . . Reused . | . . . . Traps Extracted . | . . . . Installed . | . . . . Triggered . | . . . . Machines | -11 -10 -10 -10 ---------- Run | Yrd Mat Min Sub Machines Disabled 1 | . . . 1 Max in Single Turn 1 | . . . 1 Machines Repaired . | . . . . Machines Dismantled . | . . . . Machines Sabotaged . | . . . . Overloaded Fab Kills . | . . . . Hacking | -11 -10 -10 -10 --------- Run | Yrd Mat Min Sub Machines Accessed 7 | . 3 . 4 Terminals 3 | . 3 . . Fabricators . | . . . . Repair Stations . | . . . . Recycling Units . | . . . . Scanalyzers . | . . . . Garrison Access . | . . . . Total Hacks 14 | . 5 . 9 Successful 12 | . 3 . 9 Failed 2 | . 2 . . Catastrophic . | . . . . Database Lockouts . | . . . . Manual 4 | . 4 . . Terminals 5 | . 5 . . Fabricators . | . . . . Repair Stations . | . . . . Recycling Units . | . . . . Scanalyzers . | . . . . Garrison Access . | . . . . Terminal Hacks 10 | . 1 . 9 Record 6 | . . . 6 Open Door 1 | . . . 1 Zone Layout 1 | . 1 . . Proto ID Catalog 1 | . . . 1 Release Object 1 | . . . 1 Fabricator Hacks . | . . . . Repair Station Hacks . | . . . . Recycling Unit Hacks . | . . . . Scanalyzer . | . . . . Garrison Access Hacks . | . . . . Unauthorized Hacks 2 | . 2 . . Terminals 2 | . 2 . . Botnet 2 | . 2 . . Fabricators . | . . . . Repair Stations . | . . . . Recycling Units . | . . . . Scanalyzers . | . . . . Garrison Access . | . . . . Data Cores Recovered . | . . . . Used . | . . . . Hacking Detections 2 | . 2 . . Full Trace Events . | . . . . Feedback Events . | . . . . Feedback Blocked . | . . . . Robot Schematics Acquired . | . . . . Robots Built . | . . . . Authchips . | . . . . Time . | . . . . Total Robot Build Rating . | . . . . Part Schematics Acquired . | . . . . Parts Built . | . . . . Authchips . | . . . . Time . | . . . . Total Part Build Rating . | . . . . Part Studies Acquired . | . . . . Parts Repaired . | . . . . Time . | . . . . Parts Recycled . | . . . . Recycled Matter . | . . . . Retrieved Matter . | . . . . Retrieved Components . | . . . . Parts Scanalyzed . | . . . . Part Schematics Acquired . | . . . . Parts Damaged . | . . . . Bothacking | -11 -10 -10 -10 ------------ Run | Yrd Mat Min Sub Used RIF Installer . | . . . . Robots Hacked . | . . . . Non-combat . | . . . . Combat . | . . . . Robot Hacks Applied . | . . . . Relay Couplers Released . | . . . . Fabnet Peak Effective % . | . . . . Robots Rewired . | . . . . Allies Hacked . | . . . . Hacks Repelled . | . . . . Allies | -11 -10 -10 -10 -------- Run | Yrd Mat Min Sub Total Allies . | . . . . Largest Group . | . . . . Highest-Rated Group . | . . . . Highest-Rated Ally . | . . . . Total Orders . | . . . . Ally Attacks . | . . . . Total Damage . | . . . . Kills . | . . . . Allies Corrupted . | . . . . Allies Melted . | . . . . Intel | -11 -10 -10 -10 ------- Run | Yrd Mat Min Sub Active Infowar (turns) 6487 | . 493 1595 4399 Terrain 6487 | . 493 1595 4399 Robot Analysis Total . | . . . . Derelict Logs Recovered 3 | . . . 3 Drone Launches . | . . . . Drone Recoveries . | . . . . Exploration | -11 -10 -10 -10 ------------- Run | Yrd Mat Min Sub Turns Passed 7071 | 446 623 1595 4407 Spaces Moved 2662 | 64 307 767 1524 Core 15 | 15 . . . Treads 1447 | 49 307 767 324 Legs 1200 | . . . 1200 Wheels . | . . . . Hover . | . . . . Flight . | . . . . Fastest Speed 50 | 50 160 160 130 Average Speed 145 | 134 160 160 136 Slowest Speed 160 | 160 160 160 160 Overloaded Moves . | . . . . Propulsion Burnouts . | . . . . Robots Hopped . | . . . . Potential Cave-ins . | . . . . Cave-ins Triggered . | . . . . Exploration Rate (%) 63 | 4 64 96 90 Regions Visited 3 Branch Regions 2 Pre-discovered Areas 1 | . . . 1 Known Exits Taken 3 | 1 1 1 . Unknown Exits Taken . | . . . . Scrap Searched 18 | . . 1 17 Spaces Dug . | . . . . Terrain Destroyed 1 | . . . 1 Melee . | . . . . Projectile 1 | . . . 1 AOE . | . . . . Terrain Rammed . | . . . . Walls Destroyed . | . . . . Machines Disabled . | . . . . Actions | -11 -10 -10 -10 --------- Run | Yrd Mat Min Sub Total 5554 | 405 383 1064 3702 Wait 2647 | 318 38 237 2054 Move 2659 | 63 306 766 1524 Hop . | . . . . Pick Up 26 | 8 3 7 8 Fast Attach 6 | 2 1 . 3 Attach 10 | 5 2 . 3 Detach 3 | . 2 . 1 Swap 9 | . . 4 5 Drop 16 | . 1 11 4 Fire 178 | 9 30 39 100 Melee . | . . . . Ram . | . . . . Kick . | . . . . Crush . | . . . . Escape Stasis . | . . . . Rewire . | . . . . Trap . | . . . . Miscellaneous . | . . . . Route ------- -11/Scrapyard -10/Materials (discovered 3 exits: Mat / *Min / *Sub) -10/Mines (discovered 3 exits: *Mat x2 / *Sub) -10/Subcaves (discovered 3 exits: *Mat x2 / Rec) History --------- Turn | Location | Event 14 | -11/Scrapyard | Identified exit to Materials 14 | -11/Scrapyard | Discovered exit to Materials (range 16) 447 | -11/Scrapyard | Entered Materials 447 | -10/Materials | Evolved 1 slot: Utility x1 468 | -10/Materials | Build established: Hacker-Mutant 810 | -10/Materials | Identified exit to Materials 810 | -10/Materials | Discovered exit to Materials (range 16) 813 | -10/Materials | Identified exit to Subcaves 813 | -10/Materials | Discovered exit to Subcaves (range 14) 911 | -10/Materials | Identified exit to Mines 911 | -10/Materials | Discovered exit to Mines (range 10) 1070 | -10/Materials | Entered Mines 1180 | -10/Mines | Discovered exit to Subcaves (range 16) 1315 | -10/Mines | Assembled infested the area 1320 | -10/Mines | Assisted by a Guerilla fighting off Assembled 1617 | -10/Mines | Discovered exit to Materials (range 5) 1791 | -10/Mines | Joined a pair of Derelicts in attacking an 0b10 outpost 2196 | -10/Mines | Build established: Scavenger-Mutant 2355 | -10/Mines | Discovered exit to Materials (range 8) 2507 | -10/Mines | Found DCF Scrap (11 items) 2665 | -10/Mines | Entered Subcaves 2666 | -10/Subcaves | Approached by a straggling Scientist 2671 | -10/Subcaves | A swath of the cavern ceiling suddenly collapsed 3261 | -10/Subcaves | Identified exit to Materials 3261 | -10/Subcaves | Discovered exit to Materials (range 14) 3600 | -10/Subcaves | Discovered exit to Materials (range 12) 3738 | -10/Subcaves | Visited 4L-MR0's lab 3759 | -10/Subcaves | Found Cargo Legs 3760 | -10/Subcaves | Attached Cargo Legs, gained temporary slots: Utility x2 3886 | -10/Subcaves | Shifting Twisted Machinery released Sub. Power Source 3887 | -10/Subcaves | Shifting Twisted Machinery released Sub. Monowheel 3930 | -10/Subcaves | Learned Materials stockpile data 4004 | -10/Subcaves | Core integrity fell below 50% 4009 | -10/Subcaves | A swath of the cavern ceiling suddenly collapsed 4062 | -10/Subcaves | Build established: Hacker-Mutant 4073 | -10/Subcaves | Shifting Twisted Machinery released Barrage Gun 4078 | -10/Subcaves | Shifting Twisted Machinery released Battle Cannon 4361 | -10/Subcaves | Visited Clippyterm 4365 | -10/Subcaves | Learned Research machine intel 4365 | -10/Subcaves | Learned 40 Factory zone layouts 4475 | -10/Subcaves | Identified exit to Recycling 4475 | -10/Subcaves | Discovered exit to Recycling (range 9) 5846 | -10/Subcaves | Learned 2 Materials zone layouts 5981 | -10/Subcaves | Shifting Twisted Machinery released Mak. Leg 6111 | -10/Subcaves | Shifting Twisted Machinery released Flamer 6868 | -10/Subcaves | Learned location of Storage (-7) 7045 | -10/Subcaves | A Subdweller sparked back to life 7045 | -10/Subcaves | A Subdweller sparked back to life 7045 | -10/Subcaves | A Subdweller sparked back to life 7058 | -10/Subcaves | Core integrity fell below 20% 7072 | -10/Subcaves | Destroyed by SI-DUA(R) with Subdweller Beam Cannon Last Messages --------------- 06867_ Searching scrap... 06867_ Found Sub. Laser. 06867_ Found Sub. Power Source. 06867_ Found 35 Matter. 06868_ Acquired derelict log, extracted data. World map updated: -7/Storage. 07045_ EJ-90U(R) creaks and sparks as it begins to move. 07045_ SI-DUA(R) creaks and sparks as it begins to move. 07045_ 8M-1SI(R) creaks and sparks as it begins to move. 07051_ Lgt. Nuclear Core destroyed. 07057_ 8M-1SI(R) destroyed. 07061_ EJ-90U(R) suffers critical hit (Destroy). 07068_ EJ-90U(R) affixes Scrap Shield Fragment to Scrap Shield. 07068_ SI-DUA(R) knocked back. 07071_ SI-DUA(R) affixes Scrap Shield Fragment to Scrap Shield. Map ----- +----------------------------------------------------+ | #### ## " " ###### #### | | ##### ## " #### ###### ### #?# | | #### ""### ###### ####### ##### #### | | #### ""########## ######### ########## | | # ## "###### ######### ### ##### | | ##### ######## ## #### | | "" ### ########## #### | | " #### ### ########### #### ### | | ###?# #### ########### #### | | ##?### ## ####### #####% ##### | | ####### ## #### #### ###### | | #####?## #### ### ##### | | #?#?### ###### ### ## #### | | ###### ## ######### #### ### | | ##### ## #### ##### #### | | #### ########### | | ##? ##### ## # ########### | | ### #??#?## #### ## ########## | | #?# #####?# ### #### ### ######## | | ?### ???##?# ######### ##### ####### | | ?###?###??# ## ############# ##### | | ###?##?#??# ##### ##### < ## < ## ##### | | ##?#???? ####### ### <<# ########## | | ???## #?######&# ######## | | ? ?? ???? ?######!RR & ####### | | ??" #????# %=@& ## #### | | ??????????#?## ] #### ####? ### # | | ????##?? ?#### %%##### #### #### # | | ##?????#???##?## ####?# ### ### ## | | ##?????#?? ?"#" #?#?## ### ## | | ###? ???""???" ## #?#??# ?#?## # | | ## ??????????" ??# R ##??## ###?##?### | | #? ??"????? ?""" #?# ##??### #?#??##### | | ? ?"???????#?""?"?? #?##??## #?#???##?# | | #?"???????#???? # ###?##?### ##?####?## | | ??#?#????????#?#?### ????###?## ###??###### | | ??????????????##?#### #?#????##?######?###??#### | | ?#??????????????##??####?#?#??####?#????#?######## | | ??#??????????????##?#?????#?#?#???#???#?##??###### | | ?#????????????????#????#?###????#????????????##### | | ?????????????????????##?##????????????#?#?#?#?#### | | ????????????????????????????????????#??#?#?#####?# | | ???????????????????????????????????????#?#????#### | | ?????????????????????????????????????????##???#### | | ?????????????????????????????????????#???????#?#?? | | ?????????????????????????????????????????##????### | | ?????????????????????????????????????????????####? | | ??????????????????????????????????????????????#### | | ???????????????????????????????????????????????### | | ??????????????????????????????????????????????#### | +----------------------------------------------------+ Best States ------------- Heat Dissipation 25 Energy Generation 14 Energy Capacity 250 Matter Stores 300 Matter Capacity 300 Sight Range 16 Terrain Scan Range 16 Terrain Scan Density 160 Armor Coverage 150 Resistance: KI 35 Resistance: TH 35 Resistance: EX 35 Resistance: EM 35 Resistance: I 35 Resistance: S 35 Resistance: P 35 Evasion (%) 55 Recoil Reduction 2 Offensive Hacking 20 Item Schematics ----------------- None Robot Schematics ------------------ None Fabricated ------------ Nothing Repaired ---------- Nothing Studied --------- None Alien Tech Used ----------------- None Achievements -------------- None Challenges ------------ None Game ------ Seed MyomerPitchforkCutter Manual? 0 Play Time 00:24:51 Cumulative 158.8 hours Start 2025.12.03 @ 10:56:58 End 2025.12.03 @ 11:19:55 Sessions 1 Manual Loads 0 Difficulty Explorer Special Mode None Game No. 206 Rogue 0 Adventurer 0 Explorer 206 Win Type - Total 0 Types 0/0/0/0/0/0/0/0/0/0 Lore% 70 Gallery% 66 Achievement% 52 Wizard Run 0 Options --------- Layout 1 ASCII 0 Keyboard 0 Movement Mouse Keybinds 0 Fullscreen 1 Font 24/Smallcaps Map View 50x35 Zoom Use 0% Tactical HUD 1 Map Filters NONE Filters NONE Steam 1 RUN: c72916a3-0c25-4687-bdde-deff32a647e1